fUST/lending_fUST_20251001
["ID","MTS","AMOUNT","RATE_DAILY","PERIOD"]
[388652188,1759300253820,-500.0,0.0002075,2]
[388652189,1759300253830,-500.0,0.0002075,2]
[388652190,1759300253840,-725.57,0.0002075,2]
[388652191,1759300253849,-601.52,0.0002075,2]
[388652192,1759300253858,-500.0,0.0002075,2]
[388652193,1759300253867,-500.0,0.0002075,2]
[388652194,1759300253877,-500.0,0.0002075,2]
[388652195,1759300253888,-500.0,0.0002075,2]
[388652196,1759300253897,-500.0,0.0002075,2]
[388652197,1759300253907,-500.0,0.0002075,2]
[388652198,1759300253916,-500.0,0.0002075,2]
[388652199,1759300253927,-500.0,0.0002075,2]
[388652200,1759300253936,-469.1727934,0.0002075,2]
[388652201,1759300253946,-462.06571475,0.0002075,2]
[388652202,1759300253956,-500.0,0.0002075,2]
[388652203,1759300253966,-500.0,0.0002075,2]
[388652204,1759300253976,-500.0,0.0002075,2]
[388652205,1759300253986,-500.0,0.0002075,2]
[388652206,1759300253995,-464.56508108,0.0002075,2]
[388652207,1759300254005,-500.0,0.0002075,2]
[388652208,1759300254015,-465.43133117,0.0002075,2]
[388652209,1759300254024,-500.0,0.0002075,2]
[388652210,1759300254033,-500.0,0.0002075,2]
[388652211,1759300254042,-462.09087653,0.0002075,2]
[388652212,1759300254051,-500.0,0.0002075,2]
[388652213,1759300254063,-253.28657213,0.0002075,2]
[388652214,1759300254073,-500.0,0.0002075,2]
[388652215,1759300254082,-462.83635656,0.0002075,2]
[388652216,1759300254091,-462.02352331,0.0002075,2]
[388652217,1759300254101,-500.0,0.0002075,2]
[388652218,1759300254110,-500.0,0.0002075,2]
[388652219,1759300254120,-500.0,0.0002075,2]
[388652220,1759300254129,-462.96379974,0.0002075,2]
[388652221,1759300254139,-403.76135652,0.0002075,2]
[388652222,1759300254149,-508.16926348,0.0002075,2]
[388652223,1759300254159,-500.0,0.0002075,2]
[388652224,1759300254169,-500.0,0.0002075,2]
[388652225,1759300254179,-500.0,0.0002075,2]
[388652226,1759300254189,-500.0,0.0002075,2]
[388652227,1759300254199,-467.59379288,0.0002075,2]
[388652228,1759300254209,-500.0,0.0002075,2]
[388652229,1759300254219,-500.0,0.0002075,2]
[388652230,1759300254228,-500.0,0.0002075,2]
[388652231,1759300254238,-500.0,0.0002075,2]
[388652232,1759300254248,-1778.41,0.0002075,2]
[388652233,1759300254257,-500.0,0.0002075,2]
[388652234,1759300254267,-500.0,0.0002075,2]
[388652235,1759300254277,-500.0,0.0002075,2]
[388652236,1759300254287,-500.0,0.0002075,2]
[388652237,1759300254296,-500.0,0.0002075,2]
[388652238,1759300254306,-500.0,0.0002075,2]
[388652239,1759300254315,-467.83126422,0.0002075,2]
[388652240,1759300254325,-500.0,0.0002075,2]
[388652241,1759300254335,-500.0,0.0002075,2]
[388652242,1759300254344,-500.0,0.0002075,2]
[388652243,1759300254354,-500.0,0.0002075,2]
[388652244,1759300254363,-500.0,0.0002075,2]
[388652245,1759300254373,-500.0,0.0002075,2]
[388652246,1759300254382,-500.0,0.0002075,2]
[388652247,1759300254392,-600.2,0.0002075,2]
[388652248,1759300254401,-679.62,0.0002075,2]
[388652249,1759300254411,-500.0,0.0002075,2]
[388652250,1759300254420,-500.0,0.0002075,2]
[388652251,1759300254429,-733.7,0.0002075,2]
[388652252,1759300254438,-500.0,0.0002075,2]
[388652253,1759300254448,-500.0,0.0002075,2]
[388652254,1759300254458,-287.87902039,0.0002075,2]
[388652255,1759300254467,-800.55,0.0002075,2]
[388652256,1759300254476,-2172.05,0.0002075,2]
[388652257,1759300254486,-307.48299993,0.0002075,2]
[388652258,1759300254495,-500.0,0.0002075,2]
[388652259,1759300254504,-500.0,0.0002075,2]
[388652260,1759300254513,-2452.77,0.0002075,2]
[388652261,1759300254523,-500.0,0.0002075,2]
[388652262,1759300254532,-500.0,0.0002075,2]
[388652263,1759300254542,-500.0,0.0002075,2]
[388652264,1759300254551,-500.0,0.0002075,2]
[388652265,1759300254560,-500.0,0.0002075,2]
[388652266,1759300254570,-770.05,0.0002075,2]
[388652267,1759300254579,-500.0,0.0002075,2]
[388652268,1759300254588,-500.0,0.0002075,2]
[388652269,1759300254598,-500.0,0.0002075,2]
[388652270,1759300254607,-500.0,0.0002075,2]
[388652271,1759300254616,-500.0,0.0002075,2]
[388652272,1759300254625,-500.0,0.0002075,2]
[388652273,1759300254634,-500.0,0.0002075,2]
[388652274,1759300254644,-527.39,0.0002075,2]
[388652275,1759300254653,-610.31,0.0002075,2]
[388652276,1759300254662,-578.69,0.0002075,2]
[388652277,1759300254671,-500.0,0.0002075,2]
[388652278,1759300254680,-500.0,0.0002075,2]
[388652279,1759300254690,-500.0,0.0002075,2]
[388652280,1759300254699,-500.0,0.0002075,2]
[388652281,1759300254709,-500.65,0.0002075,2]
[388652282,1759300254718,-996.5,0.0002075,2]
[388652283,1759300254728,-500.0,0.0002075,2]
[388652284,1759300254742,-2452.77,0.00020751,2]
[388652285,1759300254751,-2452.77,0.00020751,2]
[388652286,1759300254760,-2452.77,0.00020751,2]
[388652287,1759300254771,-2452.77,0.00020751,2]
[388652288,1759300254781,-2452.77,0.00020752,2]
[388652289,1759300254790,-2452.77,0.00020753,2]
[388652290,1759300254799,-168.0,0.00020759,2]
[388652291,1759300254811,-2452.77,0.00020771,2]
[388652292,1759300254820,-2452.77,0.00020788,2]
[388652293,1759300254830,-2452.77,0.00020788,2]
[388652294,1759300254841,-2452.77,0.00020788,2]
[388652295,1759300254850,-2452.77,0.00020788,2]
[388652296,1759300254859,-2452.82341395,0.00020788,2]
[388652297,1759300254869,-168.0,0.00020805,2]
[388652298,1759300254879,-460.0,0.00020806,2]
[388652299,1759300254888,-500.0,0.00020815,2]
[388652300,1759300254898,-500.0,0.00020815,2]
[388652301,1759300254907,-500.0,0.00020815,2]
[388652302,1759300254990,-500.0,0.00020815,2]
[388652303,1759300255008,-500.0,0.00020815,2]
[388652304,1759300255018,-500.0,0.00020817,2]
[388652305,1759300255027,-500.0,0.00020817,2]
[388652306,1759300255037,-500.0,0.00020817,2]
[388652307,1759300255047,-633.83,0.00020817,2]
[388652308,1759300255057,-500.0,0.00020817,2]
[388652309,1759300255067,-1834.41,0.00020817,2]
[388652310,1759300255076,-2584.74,0.00020817,2]
[388652311,1759300255085,-312.55651801,0.00020817,2]
[388652312,1759300255095,-500.0,0.00020817,2]
[388652313,1759300255104,-500.0,0.00020817,2]
[388652314,1759300255114,-3037.8,0.00020817,2]
[388652315,1759300255123,-1577.62,0.00020817,2]
[388652316,1759300255133,-1290.34,0.00020817,2]
[388652317,1759300255143,-990.8,0.00020817,2]
[388652318,1759300255153,-606.82,0.00020817,2]
[388652319,1759300255162,-624.91,0.00020817,2]
[388652320,1759300255171,-2838.9,0.00020817,2]
[388652321,1759300255181,-500.0,0.00020817,2]
[388652322,1759300255191,-500.0,0.00020817,2]
[388652323,1759300255200,-500.0,0.00020817,2]
[388652324,1759300255210,-408.96891351,0.00020818,2]
[388652325,1759300255220,-976.71,0.00020818,2]
[388652326,1759300255230,-500.0,0.00020818,2]
[388652327,1759300255239,-500.0,0.00020818,2]
[388652328,1759300255250,-500.0,0.00020818,2]
[388652329,1759300255260,-500.0,0.00020818,2]
[388652330,1759300255269,-500.0,0.00020818,2]
[388652331,1759300255278,-532.24,0.00020818,2]
[388652332,1759300255287,-696.54,0.00020818,2]
[388652333,1759300255297,-599.84,0.00020818,2]
[388652334,1759300255306,-500.0,0.00020818,2]
[388652335,1759300255315,-500.0,0.00020818,2]
[388652336,1759300255324,-1595.27,0.00020818,2]
[388652337,1759300255333,-1044.96,0.00020818,2]
[388652338,1759300255342,-816.6,0.00020818,2]
[388652339,1759300255352,-500.0,0.00020818,2]
[388652340,1759300255361,-500.0,0.00020818,2]
[388652341,1759300255370,-500.0,0.00020818,2]
[388652342,1759300255380,-2133.99,0.00020818,2]
[388652343,1759300255391,-790.26,0.00020818,2]
[388652344,1759300255400,-500.0,0.00020818,2]
[388652345,1759300255410,-500.0,0.00020818,2]
[388652346,1759300255419,-1073.26,0.00020818,2]
[388652347,1759300255429,-2985.05,0.00020818,2]
[388652348,1759300255438,-1203.65,0.00020818,2]
[388652349,1759300255447,-500.0,0.00020818,2]
[388652350,1759300255458,-1345.4,0.00020818,2]
[388652351,1759300255468,-1844.27,0.00020818,2]
[388652352,1759300255478,-744.0,0.00020818,2]
[388652353,1759300255487,-500.0,0.00020818,2]
[388652354,1759300255497,-2722.47,0.00020818,2]
[388652355,1759300255506,-704.37,0.00020818,2]
[388652356,1759300255517,-643.28,0.00020818,2]
[388652357,1759300255526,-2310.74,0.00020818,2]
[388652358,1759300255535,-500.0,0.00020818,2]
[388652359,1759300255545,-588.85,0.00020818,2]
[388652360,1759300255554,-591.97,0.00020818,2]
[388652361,1759300255564,-738.55,0.00020818,2]
[388652362,1759300255573,-1055.04,0.00020818,2]
[388652363,1759300255583,-860.04,0.00020818,2]
[388652364,1759300255593,-500.0,0.00020818,2]
[388652365,1759300255602,-500.0,0.00020818,2]
[388652366,1759300255612,-2129.67,0.00020818,2]
[388652367,1759300255622,-594.42,0.00020818,2]
[388652368,1759300255631,-500.0,0.00020818,2]
[388652369,1759300255641,-1943.54,0.00020818,2]
[388652370,1759300255650,-3021.33,0.00020818,2]
[388652371,1759300255660,-542.34,0.00020818,2]
[388652372,1759300255669,-500.0,0.00020819,2]
[388652373,1759300255679,-500.0,0.00020819,2]
[388652374,1759300255688,-500.0,0.00020819,2]
[388652375,1759300255698,-500.0,0.00020819,2]
[388652376,1759300255708,-297.50853813,0.00020819,2]
[388652377,1759300255718,-500.0,0.00020819,2]
[388652378,1759300255729,-500.0,0.00020819,2]
[388652379,1759300255743,-500.0,0.00020819,2]
[388652380,1759300255753,-1326.54,0.00020819,2]
[388652381,1759300255763,-500.0,0.00020819,2]
[388652382,1759300255773,-500.0,0.00020819,2]
[388652383,1759300255782,-1228.09,0.00020819,2]
[388652384,1759300255792,-523.58,0.00020819,2]
[388652385,1759300255802,-503.71,0.00020819,2]
[388652386,1759300255815,-503.87822302,0.00020819,2]
[388652387,1759300255824,-655.06,0.00020819,2]
[388652388,1759300255835,-500.0,0.00020819,2]
[388652389,1759300255844,-500.0,0.00020819,2]
[388652390,1759300255854,-1189.11,0.00020819,2]
[388652391,1759300255863,-1363.71,0.00020819,2]
[388652392,1759300255874,-509.24,0.00020819,2]
[388652393,1759300255884,-500.0,0.00020819,2]
[388652394,1759300255893,-584.27717821,0.00020819,2]
[388652395,1759300255904,-600.5,0.00020819,2]
[388652396,1759300255913,-500.0,0.00020819,2]
[388652397,1759300255923,-616.41,0.00020819,2]
[388652398,1759300255932,-1174.06,0.00020819,2]
[388652399,1759300255942,-500.0,0.00020819,2]
[388652400,1759300255951,-775.36,0.00020819,2]
[388652401,1759300255960,-500.0,0.00020819,2]
[388652402,1759300255969,-900.61,0.00020819,2]
[388652403,1759300255978,-767.43,0.00020819,2]
[388652404,1759300255988,-500.0,0.00020819,2]
[388652405,1759300255998,-775.18,0.00020819,2]
[388652406,1759300256007,-558.56,0.00020819,2]
[388652407,1759300256017,-709.03,0.00020819,2]
[388652408,1759300256027,-609.6,0.00020819,2]
[388652409,1759300256037,-556.02,0.00020819,2]
[388652410,1759300256046,-814.04,0.00020819,2]
[388652411,1759300256056,-1000.92,0.00020819,2]
[388652412,1759300256065,-1230.23,0.00020819,2]
[388652413,1759300256074,-169.31075035,0.00020819,2]
[388652414,1759300256083,-1305.99,0.00020819,2]
[388652415,1759300256092,-694.39,0.00020819,2]
[388652416,1759300256102,-555.89,0.00020819,2]
[388652417,1759300256111,-512.35,0.00020819,2]
[388652418,1759300256121,-500.0,0.00020819,2]
[388652419,1759300256130,-848.29,0.00020819,2]
[388652420,1759300256140,-2483.05,0.00020819,2]
[388652421,1759300256149,-500.0,0.00020819,2]
[388652422,1759300256159,-500.0,0.00020819,2]
[388652423,1759300256168,-1323.84,0.00020819,2]
[388652424,1759300256177,-1221.22,0.00020819,2]
[388652425,1759300256186,-1683.66,0.00020819,2]
[388652426,1759300256195,-500.0,0.00020819,2]
[388652427,1759300256204,-893.56,0.00020819,2]
[388652428,1759300256213,-1673.81,0.00020819,2]
[388652429,1759300256223,-1460.82,0.00020819,2]
[388652430,1759300256232,-847.13,0.00020819,2]
[388652431,1759300256242,-500.0,0.00020819,2]
[388652432,1759300256253,-500.0,0.00020819,2]
[388652433,1759300256262,-500.0,0.00020819,2]
[388652434,1759300256271,-2814.77,0.00020819,2]
[388652435,1759300256282,-500.0,0.00020819,2]
[388652436,1759300256291,-500.0,0.00020819,2]
[388652437,1759300256302,-500.0,0.00020819,2]
[388652438,1759300256312,-816.61,0.00020819,2]
[388652439,1759300256322,-649.89,0.00020819,2]
[388652440,1759300256332,-500.0,0.00020819,2]
[388652441,1759300256342,-1006.68,0.00020819,2]
[388652442,1759300256353,-151.0,0.0002082,2]
[388652443,1759300256363,-439.0,0.0002082,2]
[388652444,1759300256372,-224.01437502,0.0002082,2]
[388652445,1759300256456,-500.0,0.0002082,2]
[388652446,1759300256466,-3416.19,0.0002082,2]
[388652447,1759300256475,-943.13,0.0002082,2]
[388652448,1759300256485,-500.0,0.0002082,2]
[388652449,1759300256495,-546.02,0.0002082,2]
[388652450,1759300256505,-222.87169423,0.0002082,2]
[388652451,1759300256515,-500.0,0.0002082,2]
[388652452,1759300256530,-500.0,0.0002082,2]
[388652453,1759300256539,-1377.23,0.0002082,2]
[388652454,1759300256548,-500.0,0.0002082,2]
[388652455,1759300256563,-500.0,0.0002082,2]
[388652456,1759300256572,-659.67,0.0002082,2]
[388652457,1759300256582,-830.66,0.0002082,2]
[388652458,1759300256591,-426.76405565,0.0002082,2]
[388652459,1759300256600,-764.52,0.0002082,2]
[388652460,1759300256609,-500.0,0.0002082,2]
[388652461,1759300256619,-500.0,0.0002082,2]
[388652462,1759300256630,-501.81,0.0002082,2]
[388652463,1759300256640,-500.0,0.0002082,2]
[388652464,1759300256650,-736.74,0.0002082,2]
[388652465,1759300256659,-500.0,0.0002082,2]
[388652466,1759300256668,-2706.95,0.0002082,2]
[388652467,1759300256679,-500.0,0.0002082,2]
[388652468,1759300256688,-598.42,0.0002082,2]
[388652469,1759300256697,-1415.76,0.0002082,2]
[388652470,1759300256707,-613.83,0.0002082,2]
[388652471,1759300256716,-642.87530596,0.0002082,2]
[388652472,1759300256726,-632.86,0.0002082,2]
[388652473,1759300256739,-1640.0,0.0002082,2]
[388652474,1759300256748,-425.79536773,0.0002082,2]
[388652475,1759300256757,-523.75132116,0.00020821,2]
[388652476,1759300256768,-500.0,0.00020821,2]
[388652477,1759300256778,-713.88,0.00020821,2]
[388652478,1759300256787,-500.0,0.00020821,2]
[388652479,1759300256797,-354.49191188,0.00020821,2]
[388652480,1759300256810,-500.0,0.00020821,2]
[388652481,1759300256819,-500.0,0.00020821,2]
[388652482,1759300256828,-553.53,0.00020821,2]
[388652483,1759300256837,-500.0,0.00020821,2]
[388652484,1759300256847,-515.74,0.00020821,2]
[388652485,1759300256856,-500.0,0.00020821,2]
[388652486,1759300256865,-500.0,0.00020821,2]
[388652487,1759300256875,-475.86634205,0.00020821,2]
[388652488,1759300256884,-500.0,0.00020821,2]
[388652489,1759300256895,-1250.0,0.00020821,2]
[388652490,1759300256904,-500.0,0.00020821,2]
[388652491,1759300256914,-513.86,0.00020821,2]
[388652492,1759300256923,-500.0,0.00020821,2]
[388652493,1759300256933,-500.0,0.00020821,2]
[388652494,1759300256942,-500.0,0.00020821,2]
[388652495,1759300256951,-561.73,0.00020821,2]
[388652496,1759300256960,-500.0,0.00020821,2]
[388652497,1759300256969,-213.36628015,0.00020821,2]
[388652498,1759300256978,-500.0,0.00020821,2]
[388652499,1759300256987,-500.0,0.00020821,2]
[388652500,1759300256997,-597.05231505,0.00020821,2]
[388652501,1759300257006,-500.0,0.00020821,2]
[388652502,1759300257016,-500.0,0.00020821,2]
[388652503,1759300257025,-500.0,0.00020821,2]
[388652504,1759300257035,-500.0,0.00020821,2]
[388652505,1759300257045,-500.0,0.00020821,2]
[388652506,1759300257054,-500.0,0.00020821,2]
[388652507,1759300257063,-500.0,0.00020821,2]
[388652508,1759300257072,-500.0,0.00020821,2]
[388652509,1759300257083,-430.73298399,0.00020821,2]
[388652510,1759300257092,-500.0,0.00020821,2]
[388652511,1759300257102,-500.0,0.00020821,2]
[388652512,1759300257111,-500.0,0.00020821,2]
[388652513,1759300257121,-524.18,0.00020821,2]
[388652514,1759300257131,-500.0,0.00020821,2]
[388652515,1759300257142,-500.0,0.00020821,2]
[388652516,1759300257152,-500.0,0.00020821,2]
[388652517,1759300257161,-500.0,0.00020821,2]
[388652518,1759300257170,-500.0,0.00020821,2]
[388652519,1759300257179,-646.25,0.00020821,2]
[388652520,1759300257188,-539.33,0.00020821,2]
[388652521,1759300257198,-500.0,0.00020821,2]
[388652522,1759300257207,-657.79,0.00020821,2]
[388652523,1759300257216,-500.0,0.00020821,2]
[388652524,1759300257225,-207.28338591,0.00020821,2]
[388652525,1759300257234,-500.0,0.00020821,2]
[388652526,1759300257243,-1606.71,0.00020821,2]
[388652527,1759300257251,-421.12654648,0.00020821,2]
[388652528,1759300257260,-424.37819279,0.00020821,2]
[388652529,1759300257269,-686.68,0.00020821,2]
[388652530,1759300257278,-2286.35,0.00020821,2]
[388652531,1759300257287,-1437.67,0.00020821,2]
[388652532,1759300257296,-500.0,0.00020821,2]
[388652533,1759300257305,-1047.18,0.00020821,2]
[388652534,1759300257315,-539.47812848,0.00020821,2]
[388652535,1759300257325,-1014.26,0.00020821,2]
[388652536,1759300257335,-435.16615375,0.00020821,2]
[388652537,1759300257344,-500.0,0.00020821,2]
[388652538,1759300257353,-500.0,0.00020821,2]
[388652539,1759300257362,-2286.01,0.00020821,2]
[388652540,1759300257372,-424.03539874,0.00020821,2]
[388652541,1759300257381,-2031.62,0.00020821,2]
[388652542,1759300257390,-500.0,0.00020821,2]
[388652543,1759300257399,-454.6416581,0.00020821,2]
[388652544,1759300257409,-500.0,0.00020821,2]
[388652545,1759300257418,-330.0,0.00020831,2]
[388652546,1759300257427,-168.0,0.0002084,2]
[388652547,1759300257437,-168.0,0.00020851,2]
[388652548,1759300257448,-630.0,0.00020853,2]
[388652549,1759300257458,-2156.0,0.00020853,2]
[388652550,1759300257468,-410.475,0.00020853,2]
[388652551,1759300257477,-428.711,0.00020853,2]
[388652552,1759300257486,-500.0,0.00020873,2]
[388652553,1759300257496,-500.0,0.00020873,2]
[388652554,1759300257506,-200.0117218,0.00020873,2]
[388652555,1759300257515,-500.0,0.0002089,2]
[388652556,1759300257524,-500.0,0.0002089,2]
[388652557,1759300257534,-546.09523425,0.0002089,2]
[388652558,1759300257544,-532.04413986,0.00020921,2]
[388652559,1759300257555,-1000.0,0.00020921,2]
[388652560,1759300257564,-500.60367517,0.00020921,2]
[388652561,1759300257573,-1000.0,0.00020921,2]
[388652562,1759300257582,-504.16551314,0.00020921,2]
[388652563,1759300257591,-10742.86264589,0.00020924,2]
[388652564,1759300257600,-330.0,0.00020973,2]
[388652565,1759300257610,-264.52779824,0.00020996,2]
[388652566,1759300257619,-44075.0,0.00021,2]
[388652567,1759300257628,-553.47499876,0.00021021,2]
[388652568,1759300257637,-1000.0,0.00021021,2]
[388652569,1759300257648,-1000.0,0.00021021,2]
[388652570,1759300257657,-1000.0,0.00021021,2]
[388652571,1759300257666,-1000.0,0.00021021,2]
[388652572,1759300257675,-1000.0,0.00021021,2]
[388652573,1759300257684,-150.0,0.00021022,2]
[388652574,1759300257693,-160.0,0.00021023,2]
[388652575,1759300257703,-500.0,0.00021024,2]
[388652576,1759300257712,-500.0,0.00021024,2]
[388652577,1759300257797,-520.0,0.00021024,3]
[388652578,1759300257811,-500.0,0.00021024,2]
[388652579,1759300257820,-614.7888316,0.00021024,2]
[388652580,1759300257830,-500.0,0.00021024,2]
[388652581,1759300257840,-500.0,0.00021024,2]
[388652582,1759300257849,-500.0,0.00021024,2]
[388652583,1759300257859,-500.0,0.00021024,2]
[388652584,1759300257868,-500.0,0.00021024,2]
[388652585,1759300257877,-591.84,0.00021024,2]
[388652586,1759300257886,-813.58,0.00021024,2]
[388652587,1759300257896,-752.21,0.00021024,2]
[388652588,1759300257905,-443.2954103,0.00021024,2]
[388652589,1759300257915,-500.0,0.00021024,2]
[388652590,1759300257924,-725.57,0.00021024,2]
[388652591,1759300257934,-601.52,0.00021024,2]
[388652592,1759300257943,-500.0,0.00021024,2]
[388652593,1759300257954,-500.0,0.00021024,2]
[388652594,1759300257963,-500.0,0.00021024,2]
[388652595,1759300257972,-459.04688599,0.00021024,2]
[388652596,1759300257982,-500.0,0.00021024,2]
[388652597,1759300257991,-500.0,0.00021024,2]
[388652598,1759300258000,-500.0,0.00021024,2]
[388652599,1759300258010,-500.0,0.00021024,2]
[388652600,1759300258019,-371.80716402,0.00021024,2]
[388652601,1759300258028,-289.81913984,0.00021024,2]
[388652602,1759300258037,-445.09809606,0.00021024,2]
[388652603,1759300258047,-443.98728009,0.00021024,2]
[388652604,1759300258056,-445.9045976,0.00021024,2]
[388652605,1759300258065,-500.0,0.00021024,2]
[388652606,1759300258074,-500.0,0.00021024,2]
[388652607,1759300258083,-448.98512018,0.00021024,2]
[388652608,1759300258092,-500.0,0.00021024,2]
[388652609,1759300258101,-500.0,0.00021024,2]
[388652610,1759300258110,-475.17054848,0.00021024,2]
[388652611,1759300258119,-500.0,0.00021024,2]
[388652612,1759300258130,-500.0,0.00021024,2]
[388652613,1759300258142,-500.0,0.00021024,2]
[388652614,1759300258152,-500.0,0.00021024,2]
[388652615,1759300258161,-500.0,0.00021024,2]
[388652616,1759300258171,-442.08430554,0.00021024,2]
[388652617,1759300258179,-500.0,0.00021024,2]
[388652618,1759300258189,-500.0,0.00021024,2]
[388652619,1759300258198,-500.0,0.00021024,2]
[388652620,1759300258207,-1778.41,0.00021024,2]
[388652621,1759300258216,-500.0,0.00021024,2]
[388652622,1759300258225,-500.0,0.00021024,2]
[388652623,1759300258234,-500.0,0.00021024,2]
[388652624,1759300258244,-500.0,0.00021024,2]
[388652625,1759300258253,-500.0,0.00021024,2]
[388652626,1759300258262,-355.26776425,0.00021024,2]
[388652627,1759300258270,-443.91338469,0.00021024,2]
[388652628,1759300258279,-500.0,0.00021024,2]
[388652629,1759300258289,-500.0,0.00021024,2]
[388652630,1759300258297,-500.0,0.00021024,2]
[388652631,1759300258306,-610.39035599,0.00021024,2]
[388652632,1759300258316,-445.7148716,0.00021024,2]
[388652633,1759300258324,-500.0,0.00021024,2]
[388652634,1759300258334,-600.2,0.00021024,2]
[388652635,1759300258343,-679.62,0.00021024,2]
[388652636,1759300258352,-500.0,0.00021024,2]
[388652637,1759300258362,-500.0,0.00021024,2]
[388652638,1759300258372,-733.7,0.00021024,2]
[388652639,1759300258381,-500.0,0.00021024,2]
[388652640,1759300258391,-500.0,0.00021024,2]
[388652641,1759300258400,-800.55,0.00021024,2]
[388652642,1759300258410,-2172.05,0.00021024,2]
[388652643,1759300258419,-500.0,0.00021024,2]
[388652644,1759300258428,-500.0,0.00021024,2]
[388652645,1759300258437,-500.0,0.00021024,2]
[388652646,1759300258446,-500.0,0.00021024,2]
[388652647,1759300258455,-500.0,0.00021024,2]
[388652648,1759300258464,-500.0,0.00021024,2]
[388652649,1759300258473,-500.0,0.00021024,2]
[388652650,1759300258483,-770.05,0.00021024,2]
[388652651,1759300258492,-500.0,0.00021024,2]
[388652652,1759300258502,-500.0,0.00021024,2]
[388652653,1759300258511,-500.0,0.00021024,2]
[388652654,1759300258520,-500.0,0.00021024,2]
[388652655,1759300258529,-425.06160417,0.00021024,2]
[388652656,1759300258539,-500.0,0.00021024,2]
[388652657,1759300258549,-500.0,0.00021024,2]
[388652658,1759300258558,-527.39,0.00021024,2]
[388652659,1759300258567,-610.31,0.00021024,2]
[388652660,1759300258576,-578.69,0.00021024,2]
[388652661,1759300258585,-500.0,0.00021024,2]
[388652662,1759300258594,-500.0,0.00021024,2]
[388652663,1759300258603,-500.0,0.00021024,2]
[388652664,1759300258612,-500.0,0.00021024,2]
[388652665,1759300258621,-500.65,0.00021024,2]
[388652666,1759300258630,-996.5,0.00021024,2]
[388652667,1759300258640,-500.0,0.00021024,2]
[388652668,1759300258649,-2926.0,0.00021057,2]
[388652669,1759300258658,-1500.0,0.00021068,2]
[388652670,1759300258667,-1500.0,0.00021068,2]
[388652671,1759300258676,-150.073,0.00021074,2]
[388652672,1759300258685,-264.91,0.00021074,2]
[388652673,1759300258694,-227.806,0.00021074,2]
[388652674,1759300258703,-250.0,0.00021074,2]
[388652675,1759300258712,-151.116,0.00021074,2]
[388652676,1759300258720,-150.057,0.00021074,2]
[388652677,1759300258733,-151.0,0.00021083,2]
[388652678,1759300258744,-500.0,0.00021089,2]
[388652679,1759300258753,-500.0,0.00021089,2]
[388652680,1759300258763,-500.0,0.00021089,2]
[388652681,1759300258772,-500.0,0.00021089,2]
[388652682,1759300258783,-500.0,0.00021089,2]
[388652683,1759300258792,-500.0,0.00021091,2]
[388652684,1759300258801,-406.71734129,0.00021091,2]
[388652685,1759300258812,-500.0,0.00021091,2]
[388652686,1759300258821,-633.83,0.00021091,2]
[388652687,1759300258830,-500.0,0.00021091,2]